bitfinex/quotes_BTCUSD_20251212
["timestamp","ask_amount","ask_price","bid_price","bid_amount"]
[1765502939215,0.21265281,92113.0,92112.0,0.03804369]
[1765502941134,0.11256623,92113.0,92112.0,0.03804369]
[1765502943471,0.05465623,92113.0,92112.0,0.03804369]
[1765502943672,0.01285623,92113.0,92112.0,0.03804369]
[1765502946516,0.001,92113.0,92112.0,0.13681369]
[1765502946997,0.00011624,92120.0,92117.0,0.01085575]
[1765502947198,0.00011624,92120.0,92118.0,0.21711283]
[1765502947401,0.00011624,92120.0,92119.0,0.09877]
[1765502947617,0.00011624,92120.0,92119.0,0.10038287]
[1765502948022,0.00011624,92120.0,92119.0,0.14351085]
[1765502948801,0.00011624,92120.0,92119.0,0.40824287]
[1765502948950,0.21704376,92148.0,92119.0,0.40824287]
[1765502948951,0.0108521,92148.0,92144.0,0.01085257]
[1765502949158,0.00011639,92148.0,92145.0,0.01085246]
[1765502950009,0.01096849,92148.0,92145.0,0.01085246]
[1765502950209,0.00011639,92148.0,92145.0,0.01085246]
[1765502950568,0.00011639,92148.0,92147.0,0.03804369]
[1765502951184,0.00211639,92148.0,92147.0,0.03804369]
[1765502951380,0.00011639,92148.0,92147.0,0.03804369]
[1765502951786,0.04360639,92148.0,92147.0,0.03804369]
[1765502952008,0.21705628,92142.0,92140.0,0.03905136]
[1765502952222,0.01085328,92138.0,92130.0,0.07810273]
[1765502952419,0.0108534,92137.0,92134.0,0.05850267]
[1765502952644,0.01085328,92138.0,92134.0,0.06935642]
[1765502953107,0.0108534,92137.0,92134.0,0.01085375]
[1765502953731,0.03552363,92135.0,92132.0,0.05850267]
[1765502953940,0.02467,92135.0,92132.0,0.06935666]
[1765502954157,0.01085375,92134.0,92131.0,0.10740046]
[1765502954362,0.03552363,92135.0,92131.0,0.10740046]
[1765502954782,0.04149,92132.0,92131.0,0.03804369]
[1765502954990,0.06862498,92132.0,92131.0,0.03804369]
[1765502955320,0.12872498,92132.0,92131.0,0.03804369]
[1765502955459,0.12872498,92132.0,92131.0,0.07702136]
[1765502955903,0.22561592,92132.0,92131.0,0.07696692]
[1765502956654,0.22561592,92132.0,92131.0,0.03798925]
[1765502957955,0.22761592,92132.0,92131.0,0.03798925]
[1765502961410,0.02913498,92132.0,92131.0,0.03798925]
[1765502961619,0.002,92132.0,92131.0,0.03798925]
[1765502962857,0.22793067,92134.0,92131.0,0.03798925]
[1765502963878,0.28750067,92134.0,92131.0,0.03798925]
[1765502965254,0.03982,92132.0,92131.0,0.03798925]
[1765502965773,0.17987765,92132.0,92131.0,0.03798925]
[1765502967296,0.18087765,92132.0,92131.0,0.03798925]
[1765502968525,0.18087765,92132.0,92131.0,0.07696692]
[1765502969721,0.21708219,92131.0,92130.0,0.03897767]
[1765502969922,0.39801391,92131.0,92128.0,0.03897767]
[1765502970109,0.31234654,92129.0,92126.0,0.03897767]
[1765502970311,0.21709397,92126.0,92125.0,0.03897767]
[1765502970554,0.37218688,92126.0,92125.0,0.03897767]
[1765502970787,0.01000089,92125.0,92124.0,0.03897767]
[1765502970969,0.21709869,92124.0,92122.0,0.03897767]
[1765502971167,0.32562689,92124.0,92122.0,0.03897767]
[1765502971377,0.09939,92123.0,92122.0,0.03897767]
[1765502973383,0.10139,92123.0,92122.0,0.03897767]
[1765502973942,0.10339,92123.0,92122.0,0.03897767]
[1765502974145,0.21389762,92123.0,92122.0,0.03897767]
[1765502974401,0.0108554,92120.0,92117.0,0.05850267]
[1765502974600,0.06162,92118.0,92117.0,0.05850267]
[1765502975018,0.12119,92118.0,92117.0,0.05850267]
[1765502976406,0.01085599,92115.0,92112.0,0.04890003]
[1765502976609,0.03982,92113.0,92112.0,0.04890003]
[1765502977169,0.03982,92113.0,92112.0,0.03804369]
[1765502977363,0.09939,92113.0,92112.0,0.03804369]
[1765502977800,0.10039,92113.0,92112.0,0.03804369]
[1765502978578,0.04082,92113.0,92112.0,0.03804369]
[1765502980102,0.10039,92113.0,92112.0,0.03804369]
[1765502980309,0.001,92113.0,92112.0,0.03804369]
[1765502980517,0.001,92113.0,92112.0,0.03965656]
[1765502980729,0.001,92113.0,92112.0,0.13740656]
[1765502981386,0.001,92113.0,92112.0,0.03965656]
[1765502981598,0.02088,92117.0,92115.0,0.2171199]
[1765502982482,0.02242,92127.0,92126.0,0.21709397]
[1765502982883,0.06224,92127.0,92126.0,0.03804369]
[1765502983084,0.12181,92127.0,92126.0,0.03804369]
[1765502983852,0.18485096,92127.0,92126.0,0.03804369]
[1765502984058,0.18585096,92127.0,92126.0,0.03804369]
[1765502984690,0.12381,92127.0,92126.0,0.03804369]
[1765502988258,0.06424,92127.0,92126.0,0.03804369]
[1765502989500,0.12336,92127.0,92126.0,0.03804369]
[1765502994632,0.12336,92127.0,92126.0,0.09656646]
[1765502995031,0.12336,92127.0,92126.0,0.03804369]
[1765502995435,0.12336,92127.0,92126.0,0.09656646]
[1765502995651,0.12336,92127.0,92126.0,0.03804369]
[1765502996473,0.12336,92127.0,92126.0,0.09656646]
[1765502996879,0.12336,92127.0,92126.0,0.03804369]
[1765502997082,0.12336,92127.0,92126.0,0.09656646]
[1765502997847,0.18140059,92127.0,92126.0,0.09656646]
[1765502997983,0.12336,92127.0,92126.0,0.03804369]
[1765502999185,0.12336,92127.0,92126.0,0.09656646]
[1765502999502,0.12336,92127.0,92126.0,0.03804369]
[1765503000526,0.21709397,92126.0,92125.0,0.05852277]
[1765503000727,0.21709397,92126.0,92121.0,0.05852277]
[1765503000728,0.01000089,92122.0,92121.0,0.05852277]
[1765503000886,0.26169812,92118.0,92116.0,0.05852277]
[1765503001077,0.26169812,92118.0,92114.0,0.05852277]
[1765503001078,0.04458529,92115.0,92114.0,0.05852277]
[1765503001298,0.04458529,92115.0,92114.0,0.05891103]
[1765503001459,0.14291529,92115.0,92114.0,0.05891103]
[1765503001669,0.14291529,92115.0,92114.0,0.00038826]
[1765503002537,0.14491529,92115.0,92114.0,0.00038826]
[1765503002681,0.25542291,92115.0,92114.0,0.00038826]
[1765503003310,0.25742291,92115.0,92114.0,0.00038826]
[1765503006170,0.25742291,92115.0,92114.0,0.03940852]
[1765503006391,0.25742291,92115.0,92114.0,0.03940734]
[1765503007114,0.25742291,92115.0,92114.0,0.00038826]
[1765503008684,0.25342291,92115.0,92114.0,0.00038826]
[1765503009100,0.25942291,92115.0,92114.0,0.00138826]
[1765503009497,0.25742291,92115.0,92114.0,0.00138826]
[1765503009903,0.26942291,92115.0,92114.0,0.00238826]
[1765503010451,0.15891529,92115.0,92114.0,0.00238826]
[1765503010641,0.17626472,92115.0,92114.0,0.00238826]
[1765503010998,0.52677366,92115.0,92114.0,0.00238826]
[1765503011242,0.04458529,92096.0,92093.0,0.03901908]
[1765503011427,0.04458529,92096.0,92070.0,0.0004]
[1765503011428,0.04458529,92075.0,92074.0,0.07810273]
[1765503011607,0.27755366,92071.0,92070.0,0.0004]
[1765503011809,0.33667366,92071.0,92070.0,0.0004]
[1765503012053,0.11945,92071.0,92070.0,0.0004]
[1765503012252,0.01086059,92076.0,92070.0,0.0004]
[1765503012253,0.02112,92078.0,92070.0,0.01287417]
[1765503012408,0.02112,92078.0,92077.0,0.03804369]
[1765503012609,0.08024,92078.0,92077.0,0.03804369]
[1765503012960,0.15416757,92078.0,92077.0,0.03804369]
[1765503013321,0.16403529,92078.0,92077.0,0.03804369]
[1765503013728,0.16403529,92078.0,92077.0,0.03965656]
[1765503013729,0.02112,92078.0,92077.0,0.03965656]
[1765503013922,0.06997929,92087.0,92083.0,0.01085976]
[1765503014263,0.01085941,92086.0,92083.0,0.05842766]
[1765503014425,0.03921,92084.0,92083.0,0.05842766]
[1765503014963,0.09833,92084.0,92083.0,0.05842766]
[1765503015204,0.09833,92084.0,92082.0,0.05842766]
[1765503015382,0.05912,92084.0,92083.0,0.001]
[1765503015565,0.05912,92084.0,92082.0,0.05842766]
[1765503015763,0.03921,92083.0,92082.0,0.05842766]
[1765503016386,0.06656263,92083.0,92082.0,0.05842766]
[1765503016616,0.12280263,92083.0,92082.0,0.05842766]
[1765503016812,0.09545,92083.0,92082.0,0.05842766]
[1765503017170,0.09545,92083.0,92081.0,0.06928766]
[1765503017467,0.09369,92082.0,92081.0,0.05842766]
[1765503017984,0.09369,92082.0,92073.0,0.01086094]
[1765503017985,0.22806007,92081.0,92078.0,0.05842766]
[1765503018187,0.01086012,92080.0,92077.0,0.05842766]
[1765503018413,0.05624,92080.0,92077.0,0.05842766]
[1765503018591,0.05624,92080.0,92078.0,0.28649516]
[1765503018886,0.01086094,92073.0,92070.0,0.0004]
[1765503019128,0.0355,92071.0,92070.0,0.0004]
[1765503020096,0.09025,92071.0,92070.0,0.0074]
[1765503020992,0.09025,92071.0,92070.0,0.0124]
[1765503021397,0.09025,92071.0,92070.0,0.0054]
[1765503021747,0.17734572,92071.0,92070.0,0.0094]
[1765503022291,0.17734572,92071.0,92070.0,0.22662602]
[1765503022292,0.001,92071.0,92070.0,0.22662602]
[1765503023079,0.001,92071.0,92070.0,0.22823889]
[1765503023546,0.001,92071.0,92070.0,0.31556889]
[1765503023680,0.001,92071.0,92070.0,0.26409889]
[1765503024291,0.001,92071.0,92070.0,0.22823889]
[1765503026844,0.001,92071.0,92070.0,0.26409889]
[1765503027847,0.001,92071.0,92070.0,0.31556889]
[1765503028725,0.001,92071.0,92070.0,0.26409889]
[1765503031837,0.001,92071.0,92070.0,0.31556889]
[1765503032284,0.001,92071.0,92070.0,0.04687287]
[1765503032516,0.001,92071.0,92070.0,0.01101287]
[1765503035506,0.001,92071.0,92070.0,0.09834287]
[1765503037656,0.001,92071.0,92070.0,0.12006547]
[1765503037812,0.001,92071.0,92070.0,0.16319345]
[1765503038133,0.001,92071.0,92070.0,0.12006547]
[1765503040506,0.001,92071.0,92070.0,0.45389345]
[1765503040760,0.001,92071.0,92070.0,0.46477322]
[1765503041765,0.001,92071.0,92070.0,0.45977322]
[1765503042128,0.002,92071.0,92070.0,0.46577322]
[1765503042714,0.001,92071.0,92070.0,0.46177322]
[1765503043155,0.002,92071.0,92070.0,0.46577322]
[1765503043351,0.002,92071.0,92070.0,0.5437095]
[1765503043553,0.002,92071.0,92070.0,0.46577322]
[1765503044332,0.002,92071.0,92070.0,0.50066205]
[1765503044665,0.002,92071.0,92070.0,0.42264524]
[1765503046168,0.002,92071.0,92070.0,0.43980524]
[1765503047182,0.002,92071.0,92070.0,0.56095003]
[1765503051612,0.002,92071.0,92070.0,0.56097788]
[1765503051842,0.002,92071.0,92070.0,0.48293322]
[1765503053214,0.002,92071.0,92070.0,0.44922576]
[1765503053391,0.002,92071.0,92070.0,0.37117524]
[1765503053589,0.002,92071.0,92070.0,0.42422524]
[1765503054300,0.002,92071.0,92070.0,0.43423173]
[1765503054735,0.002,92071.0,92070.0,0.51228225]
[1765503059218,0.002,92071.0,92070.0,0.43423173]
[1765503059660,0.002,92071.0,92070.0,0.45139173]
[1765503059836,0.002,92071.0,92070.0,0.5294636]
[1765503060241,0.002,92071.0,92070.0,0.45139173]
[1765503060702,0.002,92071.0,92070.0,0.48451322]
[1765503060830,0.00036976,92071.0,92070.0,0.48451322]
[1765503061380,0.00038795,92096.0,92070.0,0.48451322]
[1765503061381,0.00038795,92096.0,92095.0,0.50786705]
[1765503061604,0.01768,92128.0,92125.0,0.22794884]
[1765503063224,0.01931,92134.0,92130.0,0.01085422]
[1765503063427,0.03016375,92134.0,92131.0,0.0108541]
[1765503063562,0.01085387,92133.0,92130.0,0.01085422]
[1765503063890,0.01085387,92133.0,92128.0,0.21708926]
[1765503063891,0.03448,92131.0,92127.0,0.03804369]
[1765503064670,0.03448,92131.0,92128.0,0.01085446]
[1765503064806,0.03016375,92134.0,92129.0,0.01085434]
[1765503065016,0.24724016,92134.0,92129.0,0.01085434]
[1765503065618,0.0108541,92131.0,92128.0,0.01085446]
[1765503066646,0.05343,92133.0,92130.0,0.01085422]
[1765503066963,0.06428387,92133.0,92129.0,0.01085434]
[1765503067819,0.01085399,92132.0,92129.0,0.01085434]
[1765503068026,0.01085399,92132.0,92130.0,0.001]
[1765503068263,0.01085387,92133.0,92130.0,0.01185422]
[1765503068506,0.01085387,92133.0,92130.0,0.001]
[1765503068729,0.06428387,92133.0,92130.0,0.001]
[1765503068889,0.03448,92131.0,92130.0,0.001]
[1765503069362,0.08791,92131.0,92130.0,0.001]
[1765503069568,0.01085422,92130.0,92127.0,0.03804369]
[1765503069772,0.06428422,92130.0,92127.0,0.03804369]
[1765503069935,0.06428422,92130.0,92129.0,0.001]
[1765503070142,0.06428422,92130.0,92127.0,0.04889827]
[1765503070796,0.03448,92128.0,92127.0,0.03804369]
[1765503071201,0.08791,92128.0,92127.0,0.03804369]
[1765503072054,0.01085528,92121.0,92115.0,0.01085599]
[1765503072220,0.02713822,92121.0,92118.0,0.21711258]
[1765503072424,0.02713822,92121.0,92115.0,0.01085599]
[1765503072425,0.22791326,92141.0,92129.0,0.21708691]
[1765503072664,0.22791326,92141.0,92131.0,0.21708219]
[1765503072665,0.01085363,92135.0,92131.0,0.21708219]
[1765503072880,0.21706859,92137.0,92131.0,0.22793629]
[1765503073071,0.05343,92141.0,92133.0,0.03804369]
[1765503073661,0.01716,92144.0,92139.0,0.01085316]
[1765503074289,0.01716,92144.0,92140.0,0.21706099]
[1765503074648,0.02801257,92144.0,92140.0,0.21706099]
[1765503074845,0.01085222,92147.0,92140.0,0.21706099]
[1765503075051,0.0108521,92148.0,92140.0,0.21706099]
[1765503075266,0.03448,92141.0,92139.0,0.22791479]
[1765503075854,0.08416,92140.0,92137.0,0.22792146]
[1765503076053,0.03268,92140.0,92137.0,0.22792146]
[1765503076960,0.001,92141.0,92139.0,0.22791569]
[1765503078238,0.01773,92142.0,92139.0,0.22791569]
[1765503078720,0.02858281,92142.0,92139.0,0.01085316]
[1765503078899,0.01773,92142.0,92139.0,0.01085316]
[1765503079428,0.01873,92142.0,92139.0,0.22791592]
[1765503079781,0.001,92142.0,92139.0,0.22791592]
[1765503082814,0.001,92142.0,92141.0,0.21705863]
[1765503083549,0.001,92142.0,92141.0,0.2186715]
[1765503083782,0.001,92142.0,92141.0,0.3006415]
[1765503083989,0.001,92142.0,92141.0,0.63446948]
[1765503084343,0.05148,92167.0,92160.0,0.21701388]
[1765503084532,0.01930641,92161.0,92160.0,0.21701388]
[1765503084921,0.01930641,92161.0,92158.0,0.22786856]
[1765503085368,0.01930641,92161.0,92160.0,0.03804369]
[1765503085567,0.00011641,92161.0,92160.0,0.03804369]
[1765503085770,0.00111641,92161.0,92160.0,0.03804369]
[1765503087170,0.00111641,92161.0,92160.0,0.07110369]
[1765503087342,0.00111641,92161.0,92160.0,0.03804369]
[1765503087903,0.00011641,92161.0,92160.0,0.03804369]
[1765503094324,0.00011641,92161.0,92160.0,0.03965656]
[1765503094538,0.00011641,92161.0,92160.0,0.08856656]
[1765503094926,0.00011641,92161.0,92160.0,0.12162656]
[1765503095323,0.00011641,92161.0,92160.0,0.03965656]
[1765503095580,0.00011641,92161.0,92160.0,0.12162656]
[1765503096758,0.00011641,92161.0,92160.0,0.07271656]
[1765503096959,0.00011641,92161.0,92160.0,0.12162656]
[1765503097615,0.00011641,92161.0,92160.0,0.07271656]
[1765503098024,0.00011641,92161.0,92160.0,0.03965656]
[1765503099187,0.00011641,92161.0,92160.0,0.41232656]
[1765503099799,0.00011641,92161.0,92160.0,0.33035656]
[1765503101241,0.05161641,92161.0,92160.0,0.33035656]
[1765503101552,0.05161641,92161.0,92160.0,0.03965656]
[1765503102772,0.01893641,92161.0,92160.0,0.03965656]
[1765503102977,0.05161641,92161.0,92160.0,0.03804369]
[1765503103183,0.05161641,92161.0,92149.0,0.01085198]
[1765503103184,0.21703718,92151.0,92149.0,0.03804369]
[1765503103327,0.21703718,92151.0,92140.0,0.01085304]
[1765503103328,0.01085198,92149.0,92145.0,0.21704872]
[1765503103525,0.01816,92150.0,92148.0,0.21704033]
[1765503103765,0.03268,92149.0,92147.0,0.01085222]
[1765503103969,0.03268,92148.0,92147.0,0.01085222]
[1765503104144,0.03268,92148.0,92147.0,0.04889591]
[1765503104344,0.01816,92150.0,92148.0,0.21704214]
[1765503104571,0.01816,92150.0,92149.0,0.001]
[1765503104968,0.10232,92150.0,92149.0,0.001]
[1765503105371,0.10232,92150.0,92148.0,0.21704214]
[1765503105614,0.01893641,92161.0,92155.0,0.21702566]
[1765503105814,0.00011641,92161.0,92160.0,0.21701388]
[1765503106298,0.00011641,92161.0,92160.0,0.29604675]
[1765503107704,0.00011641,92161.0,92160.0,0.58674675]
[1765503107904,0.00011641,92161.0,92160.0,0.62987473]
[1765503108437,0.00011641,92161.0,92160.0,0.58674675]
[1765503109616,0.00011641,92161.0,92160.0,0.50932675]
[1765503110768,0.00011641,92161.0,92160.0,0.21862675]
[1765503111935,0.00011641,92161.0,92160.0,0.29604675]
[1765503112184,0.00011641,92161.0,92160.0,0.33917473]
[1765503114272,0.00011641,92161.0,92160.0,0.29604675]
[1765503116386,0.00011641,92161.0,92160.0,0.35437]
[1765503117195,0.00011641,92161.0,92160.0,0.29604675]
[1765503117372,0.00011641,92161.0,92160.0,0.24957675]
[1765503118226,0.00011641,92161.0,92160.0,0.21862675]
[1765503119432,0.03287641,92161.0,92160.0,0.21701388]
[1765503119654,0.08141641,92161.0,92160.0,0.21701388]
[1765503119874,0.03287641,92161.0,92160.0,0.27553529]
[1765503120096,0.00011641,92161.0,92160.0,0.27553529]
[1765503120264,0.00011641,92161.0,92160.0,0.21701388]
[1765503121078,0.00011641,92161.0,92160.0,0.24796388]
[1765503121278,0.00011641,92161.0,92160.0,0.35295529]
[1765503121659,0.00011641,92161.0,92160.0,0.30648529]
[1765503122497,0.03287641,92161.0,92159.0,0.05852141]
[1765503122717,0.04865641,92161.0,92157.0,0.21702089]
[1765503122950,0.04865641,92161.0,92159.0,0.21701624]
[1765503123125,0.05146,92160.0,92159.0,0.21701624]
[1765503123350,0.05146,92160.0,92158.0,0.28639017]
[1765503123552,0.0187,92160.0,92158.0,0.28639017]
[1765503123695,0.0187,92160.0,92159.0,0.05852141]
[1765503123896,0.0187,92160.0,92158.0,0.28639017]
[1765503124095,0.0187,92160.0,92159.0,0.05852141]
[1765503124321,0.0187,92160.0,92158.0,0.28639017]
[1765503125328,0.00011641,92161.0,92158.0,0.28639017]
[1765503129058,0.00011641,92161.0,92160.0,0.08947141]
[1765503129296,0.00011641,92161.0,92160.0,0.03256287]
[1765503129504,0.00011641,92161.0,92160.0,0.07903287]
[1765503131012,0.00011641,92161.0,92160.0,0.08103287]
[1765503131306,0.00011641,92161.0,92160.0,0.41486085]
[1765503131484,0.00011641,92161.0,92160.0,0.38173936]
[1765503132076,0.00011641,92161.0,92160.0,0.38373936]
[1765503132478,0.00011641,92161.0,92160.0,0.46180872]
[1765503132884,0.00011641,92161.0,92160.0,0.14305775]
[1765503133083,0.0002314,92178.0,92177.0,0.21697386]
[1765503133309,0.0002314,92178.0,92177.0,0.24953673]
[1765503133519,0.0002314,92178.0,92177.0,0.21858673]
[1765503133891,0.0002314,92178.0,92177.0,0.25663042]
[1765503134326,0.0002314,92178.0,92177.0,0.33405042]
[1765503134732,0.0002314,92178.0,92177.0,0.28758042]
[1765503135259,0.0002314,92178.0,92177.0,0.25763042]
[1765503135456,0.0300014,92178.0,92177.0,0.22058673]
[1765503135662,0.0781414,92178.0,92177.0,0.22058673]
[1765503135992,0.0300014,92178.0,92177.0,0.21897386]
[1765503136756,0.0300014,92178.0,92177.0,0.002]
[1765503136943,0.0761114,92178.0,92177.0,0.002]
[1765503137452,0.13255872,92178.0,92177.0,0.002]
[1765503137653,0.0761114,92178.0,92177.0,0.002]
[1765503138057,0.0761114,92178.0,92177.0,0.001]
[1765503138424,0.0761114,92178.0,92177.0,0.002]
[1765503138952,0.0761114,92178.0,92177.0,0.001]
[1765503139155,0.0300014,92178.0,92177.0,0.001]
[1765503139359,0.0002314,92178.0,92177.0,0.001]
[1765503139955,0.0002314,92178.0,92176.0,0.25501918]
[1765503140155,0.01702,92177.0,92176.0,0.25501918]
[1765503140707,0.0002314,92178.0,92176.0,0.25501918]
[1765503140708,0.0002314,92178.0,92176.0,0.33368205]
[1765503140934,0.0002314,92178.0,92177.0,0.07966287]
[1765503141427,0.0002314,92178.0,92177.0,0.07866287]
[1765503141589,0.0002314,92178.0,92177.0,0.10036025]
[1765503141988,0.0002314,92178.0,92177.0,0.14348823]
[1765503142374,0.0002314,92178.0,92177.0,0.48420662]
[1765503142582,0.0002314,92178.0,92177.0,0.46550924]
[1765503142784,0.0004,92190.0,92189.0,0.5507736]
[1765503142989,0.00078788,92190.0,92189.0,0.64659647]
[1765503143404,0.00078788,92190.0,92189.0,0.72444007]
[1765503143633,0.00078788,92190.0,92189.0,0.64659647]
[1765503144268,0.00078788,92190.0,92189.0,0.60346849]
[1765503144479,0.00078788,92190.0,92189.0,0.60546849]
[1765503145072,0.00078788,92190.0,92189.0,0.60746849]
[1765503145279,0.00078788,92190.0,92189.0,0.65059647]
[1765503147667,0.00078788,92190.0,92189.0,0.70061486]
[1765503148433,0.00113491,92190.0,92189.0,0.70061486]
[1765503149994,0.0002,92210.0,92207.0,0.30154516]
[1765503150164,0.00031634,92210.0,92209.0,0.58449441]
[1765503150368,0.00031634,92210.0,92209.0,0.62331826]
[1765503150574,0.00031634,92210.0,92209.0,0.66865826]
[1765503151240,0.0108401,92250.0,92229.0,0.21685153]
[1765503151415,0.0108401,92250.0,92229.0,0.36220238]
[1765503151623,0.06424,92251.0,92229.0,0.36220238]
[1765503151908,0.06424,92251.0,92229.0,0.3190744]
[1765503151909,0.01813,92251.0,92229.0,0.3190744]
[1765503152083,0.01199,92259.0,92229.0,0.65290238]
[1765503152315,0.01083928,92257.0,92229.0,0.70292077]
[1765503152461,0.01084022,92249.0,92229.0,0.70292077]
[1765503152660,0.01809,92249.0,92229.0,0.70292077]
[1765503153262,0.01083916,92258.0,92229.0,0.70292077]
[1765503153465,0.01103893,92260.0,92229.0,0.70492077]
[1765503154097,0.0108394,92256.0,92229.0,0.70692077]
[1765503154327,0.01084034,92248.0,92229.0,0.70692077]
[1765503154463,0.01084046,92247.0,92229.0,0.70692077]
[1765503154662,0.0108401,92250.0,92229.0,0.70692077]
[1765503154866,0.01083987,92252.0,92229.0,0.70692077]
[1765503155293,0.01084046,92247.0,92229.0,0.70692077]
[1765503155598,0.01084093,92243.0,92229.0,0.70692077]
[1765503155801,0.01084104,92242.0,92229.0,0.70692077]
[1765503155998,0.01084081,92244.0,92229.0,0.65690238]
[1765503156200,0.0108414,92239.0,92229.0,0.67402238]
[1765503156401,0.0108421,92233.0,92229.0,0.67402238]
[1765503156725,0.21682987,92239.0,92229.0,0.6308944]
[1765503157037,0.21681441,92245.0,92229.0,0.36870287]
[1765503157038,0.21683836,92235.0,92229.0,0.36870287]
[1765503157197,0.21683836,92235.0,92229.0,0.35158287]
[1765503157563,0.0108421,92233.0,92229.0,0.35158287]
[1765503157763,0.21683412,92237.0,92229.0,0.39692287]
[1765503158005,0.01084222,92232.0,92229.0,0.35158287]
[1765503158214,0.21684765,92231.0,92229.0,0.29631287]
[1765503158413,0.07833,92230.0,92229.0,0.004]
[1765503159392,0.03244,92230.0,92229.0,0.002]
[1765503159608,0.03244,92230.0,92229.0,0.001]
[1765503159949,0.03244,92230.0,92229.0,0.002]
[1765503160233,0.01084363,92220.0,92217.0,0.01084398]
[1765503160376,0.01084375,92219.0,92216.0,0.3015441]
[1765503160581,0.01084375,92219.0,92216.0,0.3468841]
[1765503161335,0.01084375,92219.0,92217.0,0.001]
[1765503161856,0.00080947,92218.0,92217.0,0.001]
[1765503162519,0.00080947,92218.0,92216.0,0.001]
[1765503162723,0.0108441,92216.0,92213.0,0.01084445]
[1765503163125,0.01084434,92214.0,92211.0,0.32510469]
[1765503163325,0.0108441,92216.0,92213.0,0.30154445]
[1765503164687,0.0108441,92216.0,92213.0,0.01084445]
[1765503164894,0.0108441,92216.0,92206.0,0.22774808]
[1765503164895,0.21689856,92209.0,92200.0,0.03879407]
[1765503165189,0.0108461,92199.0,92196.0,0.01084645]
[1765503165403,0.01084586,92201.0,92197.0,0.01084633]
[1765503165531,0.0108461,92199.0,92196.0,0.0128472]
[1765503165746,0.22775678,92204.0,92198.0,0.01084622]
[1765503166249,0.01084563,92203.0,92200.0,0.01084598]
[1765503166439,0.01084551,92204.0,92200.0,0.01084598]
[1765503166644,0.22772223,92218.0,92210.0,0.01084481]
[1765503166852,0.01084445,92213.0,92208.0,0.01084504]
[1765503167065,0.21691032,92204.0,92203.0,0.00161287]
[1765503167401,0.03091,92204.0,92203.0,0.00161287]
[1765503168030,0.01084586,92201.0,92198.0,0.2907]
[1765503168450,0.01084586,92201.0,92196.0,0.0500284]
[1765503168451,0.00026024,92199.0,92196.0,0.03918195]
[1765503168679,0.01084586,92201.0,92197.0,0.01084633]
[1765503169013,0.22775831,92203.0,92200.0,0.001]
[1765503169214,0.01084563,92203.0,92200.0,0.002]
[1765503169415,0.21691503,92202.0,92200.0,0.001]
[1765503169655,0.01084563,92203.0,92200.0,0.001]
[1765503169953,0.01084563,92203.0,92198.0,0.04964029]
[1765503170156,0.01084563,92203.0,92200.0,0.05064005]
[1765503170332,0.01084563,92203.0,92200.0,0.05164005]
[1765503170740,0.01084551,92204.0,92200.0,0.05164005]
[1765503170949,0.01084528,92206.0,92201.0,0.26655731]
[1765503171152,0.01722,92209.0,92206.0,0.01084528]
[1765503172102,0.01722,92209.0,92208.0,0.03804369]
[1765503173158,0.04813,92209.0,92208.0,0.03804369]
[1765503174735,0.01084445,92213.0,92210.0,0.01084481]
[1765503175140,0.00060715,92211.0,92210.0,0.01084481]
[1765503175383,0.01084492,92209.0,92206.0,0.03891385]
[1765503175555,0.01084492,92209.0,92196.0,0.01123433]
[1765503175556,0.26407327,92207.0,92204.0,0.03891385]
[1765503175742,0.26456479,92207.0,92204.0,0.03891385]
[1765503175956,0.26407327,92207.0,92204.0,0.03891385]
[1765503176352,0.27491843,92207.0,92204.0,0.03891385]
[1765503176759,0.27491843,92207.0,92204.0,0.03991385]
[1765503179347,0.05801516,92207.0,92204.0,0.03991385]
[1765503181072,0.00043371,92205.0,92204.0,0.03991385]
[1765503182035,0.00043371,92205.0,92204.0,0.03891385]
[1765503182244,0.00043371,92205.0,92202.0,0.22776043]
[1765503182543,0.01084304,92225.0,92219.0,0.01084375]
[1765503182742,0.01084304,92225.0,92218.0,0.03804369]
[1765503182743,0.01084351,92221.0,92218.0,0.03804369]
[1765503182887,0.01084351,92221.0,92218.0,0.04888755]
[1765503183543,0.03091,92219.0,92218.0,0.03804369]
[1765503184044,0.07402,92219.0,92218.0,0.03804369]
[1765503184550,0.03091,92219.0,92218.0,0.03804369]
[1765503185380,0.03191,92219.0,92218.0,0.03804369]
[1765503185744,0.001,92219.0,92218.0,0.03804369]
[1765503185948,0.03191,92219.0,92218.0,0.03804369]
[1765503186960,0.03091,92219.0,92218.0,0.03804369]
[1765503188434,0.03191,92219.0,92218.0,0.03804369]
[1765503188794,0.03274837,92219.0,92218.0,0.03804369]
[1765503190208,0.03274837,92219.0,92218.0,0.07696297]
[1765503190781,0.07513837,92219.0,92218.0,0.03804369]
[1765503191192,0.03274837,92219.0,92218.0,0.03804369]
[1765503193243,0.03274837,92219.0,92218.0,0.07696297]
[1765503195537,0.00183837,92219.0,92218.0,0.07696297]
[1765503196884,0.07228837,92219.0,92218.0,0.07696297]
[1765503197259,0.07228837,92219.0,92218.0,0.03891928]
[1765503197260,0.10189945,92219.0,92218.0,0.03891928]
[1765503197528,0.10189945,92219.0,92213.0,0.05837077]
[1765503197529,0.21687739,92218.0,92216.0,0.03891928]
[1765503197734,0.25855739,92218.0,92216.0,0.03891928]
[1765503197938,0.07035,92217.0,92216.0,0.03891928]
[1765503198667,0.02117351,92221.0,92218.0,0.01084386]
[1765503198859,0.02117351,92221.0,92220.0,0.03804369]
[1765503199073,0.039,92221.0,92220.0,0.03804369]
[1765503199277,0.01033,92221.0,92220.0,0.07705759]
[1765503199459,0.01033,92221.0,92220.0,0.03804369]
[1765503199684,0.01084292,92226.0,92223.0,0.01084328]
[1765503199909,0.01084292,92226.0,92221.0,0.21687034]
[1765503199910,0.01084292,92226.0,92221.0,0.26672746]
[1765503200027,0.01084304,92225.0,92221.0,0.04985712]
[1765503200444,0.22770644,92224.0,92221.0,0.03901361]
[1765503200644,0.01084328,92223.0,92220.0,0.0770573]
[1765503200860,0.00982,92222.0,92220.0,0.0770573]
[1765503201275,0.01084328,92223.0,92220.0,0.08790093]
[1765503202117,0.02056328,92223.0,92220.0,0.08790093]
[1765503202543,0.00972,92223.0,92220.0,0.08790093]
[1765503202957,0.02056328,92223.0,92220.0,0.08790093]
[1765503203190,0.23743023,92223.0,92220.0,0.0770573]
[1765503203398,0.00089616,92221.0,92220.0,0.03804369]
[1765503204257,0.00089616,92221.0,92220.0,0.0770573]
[1765503205222,0.07017616,92221.0,92220.0,0.0770573]
[1765503207365,0.07017616,92221.0,92220.0,0.03804369]
[1765503209823,0.00089616,92221.0,92220.0,0.03804369]
[1765503210527,0.00089616,92221.0,92220.0,0.03965656]
[1765503212147,0.06947616,92221.0,92220.0,0.03965656]